[Event "*** Titled Tuesday Blitz"]
[Site "Chess.com"]
[Date "2021.02.16"]
[Round "7"]
[White "Ranindu2003"]
[Black "ClydeHillKid"]
[Result "1-0"]
[WhiteElo "2582"]
[BlackElo "2378"]
[TimeControl "180+1"]
[EndTime "11:20:30 PST"]
[Termination "Ranindu2003 won by checkmate"]

1. e4 {[%clk 0:03:00.1]} 1... e6 {[%clk 0:02:55.4]} 2. d4 {[%clk 0:02:59.6]}
2... d5 {[%clk 0:02:55.8]} 3. Nd2 {[%clk 0:03:00.3]} 3... Nf6 {[%clk 0:02:56.1]}
4. e5 {[%clk 0:02:57.1]} 4... Nfd7 {[%clk 0:02:56.3]} 5. Bd3 {[%clk 0:02:57.9]}
5... c5 {[%clk 0:02:56.4]} 6. c3 {[%clk 0:02:58.6]} 6... Nc6 {[%clk 0:02:56.6]}
7. Ngf3 {[%clk 0:02:59.3]} 7... Qb6 {[%clk 0:02:55.8]} 8. O-O {[%clk 0:02:59.1]}
8... cxd4 {[%clk 0:02:56.3]} 9. cxd4 {[%clk 0:03:00]} 9... Nxd4 {[%clk
0:02:55.9]} 10. Nxd4 {[%clk 0:03:00.7]} 10... Qxd4 {[%clk 0:02:56.7]} 11. Nf3
{[%clk 0:03:01.4]} 11... Qb6 {[%clk 0:02:56.9]} 12. a3 {[%clk 0:03:02.3]} 12...
Be7 {[%clk 0:02:54.9]} 13. Qa4 {[%clk 0:02:57.4]} 13... O-O {[%clk 0:02:49.1]}
14. Bg5 {[%clk 0:02:56.3]} 14... Bxg5 {[%clk 0:02:42.4]} 15. Bxh7+ {[%clk
0:02:55.5]} 15... Kxh7 {[%clk 0:02:31.2]} 16. Nxg5+ {[%clk 0:02:54.5]} 16... Kg8
{[%clk 0:01:59.2]} 17. Qh4 {[%clk 0:02:55.4]} 17... Re8 {[%clk 0:01:51.3]} 18.
Qh7+ {[%clk 0:02:43.7]} 18... Kf8 {[%clk 0:01:50.2]} 19. Qh8+ {[%clk 0:02:44.4]}
19... Ke7 {[%clk 0:01:50.3]} 20. Qxg7 {[%clk 0:02:45.3]} 20... Rf8 {[%clk
0:01:47.2]} 21. Nh7 {[%clk 0:02:42.7]} 21... Re8 {[%clk 0:01:35.7]} 22. Qg5+
{[%clk 0:02:37.7]} 22... f6 {[%clk 0:01:31.4]} 23. exf6+ {[%clk 0:02:34.6]}
23... Kd6 {[%clk 0:01:27.4]} 24. Qf4+ {[%clk 0:02:05.2]} 24... e5 {[%clk
0:01:25.5]} 25. f7 {[%clk 0:02:05.1]} 25... Rf8 {[%clk 0:01:13]} 26. Qh6+ {[%clk
0:01:35.3]} 26... Ke7 {[%clk 0:01:11.2]} 27. Qg5+ {[%clk 0:01:35.2]} 27... Kxf7
{[%clk 0:01:08.4]} 28. Nxf8 {[%clk 0:01:35.7]} 28... Kxf8 {[%clk 0:01:04.3]} 29.
Rac1 {[%clk 0:01:34.3]} 29... Qd6 {[%clk 0:00:41.8]} 30. f4 {[%clk 0:01:17.6]}
30... e4 {[%clk 0:00:41]} 31. f5 {[%clk 0:01:18]} 31... Qf6 {[%clk 0:00:27.6]}
32. Qf4 {[%clk 0:00:59.2]} 32... Ne5 {[%clk 0:00:21.6]} 33. Rcd1 {[%clk
0:00:44.8]} 33... Nd3 {[%clk 0:00:19.6]} 34. Qe3 {[%clk 0:00:32.2]} 34... Bd7
{[%clk 0:00:18.4]} 35. g4 {[%clk 0:00:32.6]} 35... Kf7 {[%clk 0:00:12.6]} 36. g5
{[%clk 0:00:31.7]} 36... Rg8 {[%clk 0:00:12.1]} 37. h4 {[%clk 0:00:31.8]} 37...
Bxf5 {[%clk 0:00:09.8]} 38. Rxf5 {[%clk 0:00:27.8]} 38... Qxf5 {[%clk
0:00:09.4]} 39. Rf1 {[%clk 0:00:28.5]} 39... Qxf1+ {[%clk 0:00:07.1]} 40. Kxf1
{[%clk 0:00:29.4]} 40... Kg6 {[%clk 0:00:07.6]} 41. h5+ {[%clk 0:00:19.6]} 41...
Kxh5 {[%clk 0:00:06.8]} 42. Qh3+ {[%clk 0:00:20.3]} 42... Kxg5 {[%clk
0:00:05.1]} 43. Qg3+ {[%clk 0:00:20.4]} 43... Kf5 {[%clk 0:00:05.7]} 44. Qxg8
{[%clk 0:00:20.9]} 44... Ke5 {[%clk 0:00:06.4]} 45. Qg7+ {[%clk 0:00:18.9]}
45... Kd6 {[%clk 0:00:03.8]} 46. Ke2 {[%clk 0:00:18.2]} 46... Kc6 {[%clk
0:00:03.6]} 47. b4 {[%clk 0:00:17.8]} 47... a6 {[%clk 0:00:03.5]} 48. Ke3 {[%clk
0:00:17]} 48... b6 {[%clk 0:00:03.2]} 49. Qf6+ {[%clk 0:00:15]} 49... Kb5 {[%clk
0:00:03.3]} 50. Qe6 {[%clk 0:00:14.5]} 50... Nb2 {[%clk 0:00:02.4]} 51. Qxd5+
{[%clk 0:00:13.9]} 51... Ka4 {[%clk 0:00:03.1]} 52. Qxe4 {[%clk 0:00:05.6]}
52... Kxa3 {[%clk 0:00:03.6]} 53. Qd4 {[%clk 0:00:06.3]} 53... b5 {[%clk
0:00:03.4]} 54. Qc3+ {[%clk 0:00:06.3]} 54... Ka2 {[%clk 0:00:03.2]} 55. Kd4
{[%clk 0:00:06.7]} 55... Na4 {[%clk 0:00:02.7]} 56. Qd2+ {[%clk 0:00:06.6]}
56... Ka3 {[%clk 0:00:03]} 57. Kd5 {[%clk 0:00:06.7]} 57... Kb3 {[%clk
0:00:02.1]} 58. Kc6 {[%clk 0:00:06]} 58... Nc3 {[%clk 0:00:02.4]} 59. Qd4 {[%clk
0:00:03.4]} 59... Na4 {[%clk 0:00:01.8]} 60. Kb7 {[%clk 0:00:02.6]} 60... Nc3
{[%clk 0:00:02.1]} 61. Kxa6 {[%clk 0:00:02.7]} 61... Na2 {[%clk 0:00:02.7]} 62.
Qe3+ {[%clk 0:00:03.2]} 62... Kxb4 {[%clk 0:00:02.6]} 63. Qd2+ {[%clk
0:00:03.8]} 63... Ka3 {[%clk 0:00:02.9]} 64. Kxb5 {[%clk 0:00:03.6]} 64... Kb3
{[%clk 0:00:02.1]} 65. Qd3+ {[%clk 0:00:03.7]} 65... Kb2 {[%clk 0:00:02.3]} 66.
Qf5 {[%clk 0:00:04.3]} 66... Kb3 {[%clk 0:00:02.7]} 67. Qh3+ {[%clk 0:00:02.8]}
67... Nc3+ {[%clk 0:00:02.2]} 68. Kc5 {[%clk 0:00:02.5]} 68... Kc2 {[%clk
0:00:02.6]} 69. Kd6 {[%clk 0:00:03.4]} 69... Ne2 {[%clk 0:00:01.7]} 70. Qh7+
{[%clk 0:00:04.3]} 70... Kd2 {[%clk 0:00:01.4]} 71. Ke7 {[%clk 0:00:05.2]} 71...
Ke3 {[%clk 0:00:01.3]} 72. Kf6 {[%clk 0:00:05.7]} 72... Nf4 {[%clk 0:00:01.7]}
73. Qh6 {[%clk 0:00:05.7]} 73... Kf3 {[%clk 0:00:02.1]} 74. Ke5 {[%clk
0:00:06.1]} 74... Nd3+ {[%clk 0:00:02]} 75. Kd4 {[%clk 0:00:06.6]} 75... Nf4
{[%clk 0:00:02.2]} 76. Qh1+ {[%clk 0:00:06.8]} 76... Kg4 {[%clk 0:00:02.1]} 77.
Ke3 {[%clk 0:00:06.7]} 77... Ne6 {[%clk 0:00:01.1]} 78. Qe4+ {[%clk 0:00:06.6]}
78... Kg5 {[%clk 0:00:01.3]} 79. Qxe6 {[%clk 0:00:07.3]} 79... Kh4 {[%clk
0:00:01.3]} 80. Qg8 {[%clk 0:00:07.6]} 80... Kh5 {[%clk 0:00:01.8]} 81. Kf4
{[%clk 0:00:08]} 81... Kh6 {[%clk 0:00:02.3]} 82. Kf5 {[%clk 0:00:08.4]} 82...
Kh5 {[%clk 0:00:02.7]} 83. Qg5# {[%clk 0:00:09.3]} 1-0

[Event "*** Titled Tuesday Blitz"]
[Site "Chess.com"]
[Date "2021.02.16"]
[Round "7"]
[White "AlexSuv"]
[Black "safikiet"]
[Result "1/2-1/2"]
[WhiteElo "2441"]
[BlackElo "2308"]
[TimeControl "180+1"]
[EndTime "11:20:42 PST"]
[Termination "Game drawn by stalemate"]

1. d4 {[%clk 0:03:00.9]} 1... d5 {[%clk 0:02:59.2]} 2. c4 {[%clk 0:02:56.2]}
2... dxc4 {[%clk 0:02:59.2]} 3. Nf3 {[%clk 0:02:55.3]} 3... a6 {[%clk
0:02:58.1]} 4. a4 {[%clk 0:02:49.2]} 4... Nc6 {[%clk 0:02:56.2]} 5. e3 {[%clk
0:02:47.5]} 5... Na5 {[%clk 0:02:43.8]} 6. Nbd2 {[%clk 0:02:41.6]} 6... b5
{[%clk 0:02:31.7]} 7. axb5 {[%clk 0:02:32]} 7... axb5 {[%clk 0:02:30.2]} 8. b4
{[%clk 0:02:32.4]} 8... cxb3 {[%clk 0:02:21.2]} 9. Nxb3 {[%clk 0:02:22]} 9... c6
{[%clk 0:02:09.2]} 10. Bd2 {[%clk 0:02:16.5]} 10... Nxb3 {[%clk 0:02:05]} 11.
Rxa8 {[%clk 0:02:14.3]} 11... Nxd2 {[%clk 0:02:05.1]} 12. Qxd2 {[%clk
0:02:14.6]} 12... Nf6 {[%clk 0:01:55.8]} 13. Ne5 {[%clk 0:02:13.1]} 13... Qc7
{[%clk 0:01:40.5]} 14. Qa5 {[%clk 0:01:50.2]} 14... Qxa5+ {[%clk 0:01:33.3]} 15.
Rxa5 {[%clk 0:01:51.1]} 15... e6 {[%clk 0:01:25.5]} 16. Ra8 {[%clk 0:01:50.6]}
16... Bb4+ {[%clk 0:01:22.8]} 17. Ke2 {[%clk 0:01:39.1]} 17... O-O {[%clk
0:01:19.6]} 18. Nxc6 {[%clk 0:01:35.4]} 18... Bd6 {[%clk 0:01:16.7]} 19. Na7
{[%clk 0:01:24.2]} 19... Ba6 {[%clk 0:01:14.7]} 20. Rxf8+ {[%clk 0:01:22.2]}
20... Kxf8 {[%clk 0:01:13.6]} 21. f3 {[%clk 0:01:01]} 21... b4+ {[%clk
0:01:09.2]} 22. Kf2 {[%clk 0:01:00.3]} 22... Bb7 {[%clk 0:01:06.8]} 23. Bb5
{[%clk 0:00:53.2]} 23... Nd5 {[%clk 0:00:59.6]} 24. Bc6 {[%clk 0:00:46.1]} 24...
Bxc6 {[%clk 0:00:57.5]} 25. Nxc6 {[%clk 0:00:46.1]} 25... Nc3 {[%clk 0:00:53.8]}
26. Ra1 {[%clk 0:00:30.5]} 26... g6 {[%clk 0:00:46.9]} 27. Ra8+ {[%clk
0:00:24.9]} 27... Kg7 {[%clk 0:00:46.1]} 28. Ra7 {[%clk 0:00:25.4]} 28... b3
{[%clk 0:00:33.3]} 29. Rb7 {[%clk 0:00:22.3]} 29... b2 {[%clk 0:00:33.4]} 30.
Rxb2 {[%clk 0:00:15.2]} 30... Nd1+ {[%clk 0:00:33.2]} 31. Ke2 {[%clk 0:00:15.2]}
31... Nxb2 {[%clk 0:00:34.1]} 32. g3 {[%clk 0:00:15.9]} 32... Kf8 {[%clk
0:00:27.1]} 33. e4 {[%clk 0:00:15.1]} 33... Ke8 {[%clk 0:00:26.3]} 34. Na5
{[%clk 0:00:12.1]} 34... Kd7 {[%clk 0:00:22.8]} 35. Nb3 {[%clk 0:00:09.1]} 35...
Na4 {[%clk 0:00:19.3]} 36. Nd2 {[%clk 0:00:08.8]} 36... Kc6 {[%clk 0:00:18.4]}
37. Kd3 {[%clk 0:00:07.9]} 37... Nb6 {[%clk 0:00:17.3]} 38. f4 {[%clk
0:00:06.9]} 38... Be7 {[%clk 0:00:17]} 39. Nf3 {[%clk 0:00:07.4]} 39... f6
{[%clk 0:00:16.3]} 40. h3 {[%clk 0:00:07.1]} 40... Nd7 {[%clk 0:00:14.7]} 41. g4
{[%clk 0:00:07.7]} 41... h6 {[%clk 0:00:14.5]} 42. h4 {[%clk 0:00:07.9]} 42...
f5 {[%clk 0:00:12.2]} 43. gxf5 {[%clk 0:00:05.2]} 43... exf5 {[%clk 0:00:12]}
44. h5 {[%clk 0:00:04.8]} 44... fxe4+ {[%clk 0:00:11.3]} 45. Kxe4 {[%clk
0:00:05.7]} 45... gxh5 {[%clk 0:00:11.8]} 46. Kf5 {[%clk 0:00:04.5]} 46... Kd5
{[%clk 0:00:11.1]} 47. Kg6 {[%clk 0:00:04.3]} 47... h4 {[%clk 0:00:10.6]} 48.
Kxh6 {[%clk 0:00:04]} 48... Ke4 {[%clk 0:00:09.3]} 49. Nxh4 {[%clk 0:00:02.4]}
49... Bxh4 {[%clk 0:00:08.8]} 50. d5 {[%clk 0:00:03.1]} 50... Kxd5 {[%clk
0:00:08.7]} 51. Kh5 {[%clk 0:00:04]} 51... Bf6 {[%clk 0:00:08.9]} 52. Kg4 {[%clk
0:00:04.9]} 52... Ke6 {[%clk 0:00:08.9]} 53. f5+ {[%clk 0:00:05.3]} 53... Ke5
{[%clk 0:00:09]} 54. Kf3 {[%clk 0:00:06.2]} 54... Kxf5 {[%clk 0:00:09.1]} 55.
Ke3 {[%clk 0:00:07]} 55... Be5 {[%clk 0:00:09.9]} 56. Kf3 {[%clk 0:00:07.3]}
56... Nc5 {[%clk 0:00:09.6]} 57. Ke3 {[%clk 0:00:07.6]} 57... Ke6 {[%clk
0:00:09.9]} 58. Kf3 {[%clk 0:00:07.8]} 58... Kd5 {[%clk 0:00:10.8]} 59. Ke3
{[%clk 0:00:08.4]} 59... Bd4+ {[%clk 0:00:11.7]} 60. Kf3 {[%clk 0:00:08.7]}
60... Ke5 {[%clk 0:00:11.8]} 61. Kg4 {[%clk 0:00:09.2]} 61... Ne6 {[%clk
0:00:12.7]} 62. Kf3 {[%clk 0:00:09.3]} 62... Kf5 {[%clk 0:00:12.2]} 63. Ke2
{[%clk 0:00:09.4]} 63... Ke4 {[%clk 0:00:11.9]} 64. Kd2 {[%clk 0:00:07.8]} 64...
Nc5 {[%clk 0:00:10.8]} 65. Ke2 {[%clk 0:00:08.2]} 65... Kf4 {[%clk 0:00:10.7]}
66. Kf1 {[%clk 0:00:07.9]} 66... Kf3 {[%clk 0:00:10.7]} 67. Ke1 {[%clk
0:00:08.4]} 67... Ne4 {[%clk 0:00:10.7]} 68. Kd1 {[%clk 0:00:08.5]} 68... Ke3
{[%clk 0:00:10.8]} 69. Kc2 {[%clk 0:00:08.9]} 69... Bc3 {[%clk 0:00:10.2]} 70.
Kb3 {[%clk 0:00:09.2]} 70... Kd3 {[%clk 0:00:11.1]} 71. Ka4 {[%clk 0:00:09.4]}
71... Kc4 {[%clk 0:00:11.1]} 72. Ka3 {[%clk 0:00:09.4]} 72... Nc5 {[%clk
0:00:09]} 73. Ka2 {[%clk 0:00:09.8]} 73... Kb4 {[%clk 0:00:08.1]} 74. Kb1 {[%clk
0:00:10.1]} 74... Kb3 {[%clk 0:00:07.7]} 75. Kc1 {[%clk 0:00:11]} 75... Bd4
{[%clk 0:00:06.9]} 76. Kd1 {[%clk 0:00:11.9]} 76... Kc3 {[%clk 0:00:07.3]} 77.
Ke2 {[%clk 0:00:12.8]} 77... Nd3 {[%clk 0:00:07.1]} 78. Kf3 {[%clk 0:00:13.7]}
78... Kd2 {[%clk 0:00:07.9]} 79. Kg4 {[%clk 0:00:14.6]} 79... Ke3 {[%clk
0:00:08.8]} 80. Kf5 {[%clk 0:00:15.5]} 80... Be5 {[%clk 0:00:09.2]} 81. Ke6
{[%clk 0:00:16.4]} 81... Ke4 {[%clk 0:00:09.5]} 82. Kd7 {[%clk 0:00:16.4]} 82...
Nf4 {[%clk 0:00:09.8]} 83. Kc6 {[%clk 0:00:16.8]} 83... Kd4 {[%clk 0:00:10.5]}
84. Kd7 {[%clk 0:00:16.5]} 84... Kd5 {[%clk 0:00:10.2]} 85. Kd8 {[%clk
0:00:16.7]} 85... Bd6 {[%clk 0:00:10.3]} 86. Kd7 {[%clk 0:00:16.9]} 86... Nd3
{[%clk 0:00:09.4]} 87. Kc8 {[%clk 0:00:17]} 87... Kc6 {[%clk 0:00:09.3]} 88. Kd8
{[%clk 0:00:17.5]} 88... Nf4 {[%clk 0:00:09.4]} 89. Kc8 {[%clk 0:00:17.9]} 89...
Ne6 {[%clk 0:00:08.9]} 1/2-1/2

[Event "*** Titled Tuesday Blitz"]
[Site "Chess.com"]
[Date "2021.02.16"]
[Round "7"]
[White "Titus369"]
[Black "KubaGepard"]
[Result "1/2-1/2"]
[WhiteElo "2557"]
[BlackElo "2405"]
[TimeControl "180+1"]
[EndTime "11:21:52 PST"]
[Termination "Game drawn by 50-move rule"]

1. e4 {[%clk 0:03:00.9]} 1... e5 {[%clk 0:02:59.2]} 2. Nf3 {[%clk 0:03:00.2]}
2... Nc6 {[%clk 0:02:58.9]} 3. Bb5 {[%clk 0:03:00.6]} 3... a6 {[%clk 0:02:56.6]}
4. Ba4 {[%clk 0:03:00]} 4... Nf6 {[%clk 0:02:57.1]} 5. O-O {[%clk 0:02:57.4]}
5... Be7 {[%clk 0:02:57.6]} 6. d3 {[%clk 0:02:53.1]} 6... b5 {[%clk 0:02:56.9]}
7. Bb3 {[%clk 0:02:52.8]} 7... d6 {[%clk 0:02:57.8]} 8. a3 {[%clk 0:02:51.5]}
8... O-O {[%clk 0:02:57.3]} 9. Nc3 {[%clk 0:02:51.6]} 9... Nb8 {[%clk
0:02:56.4]} 10. h3 {[%clk 0:02:50.1]} 10... Nbd7 {[%clk 0:02:56.1]} 11. Bg5
{[%clk 0:02:50.6]} 11... h6 {[%clk 0:02:55]} 12. Be3 {[%clk 0:02:48.2]} 12...
Bb7 {[%clk 0:02:51.1]} 13. Nh4 {[%clk 0:02:43.6]} 13... Nxe4 {[%clk 0:02:39.8]}
14. Ng6 {[%clk 0:02:36.6]} 14... Nxc3 {[%clk 0:02:24.4]} 15. bxc3 {[%clk
0:02:27.9]} 15... Re8 {[%clk 0:02:23.7]} 16. Qg4 {[%clk 0:02:22.4]} 16... Nf6
{[%clk 0:02:19.9]} 17. Qg3 {[%clk 0:02:12.9]} 17... d5 {[%clk 0:01:49.1]} 18.
Nxe7+ {[%clk 0:02:04.5]} 18... Qxe7 {[%clk 0:01:46.4]} 19. Bxh6 {[%clk 0:02:04]}
19... Nh5 {[%clk 0:01:45.5]} 20. Qg4 {[%clk 0:01:59.4]} 20... Qf6 {[%clk
0:01:26.7]} 21. Qxh5 {[%clk 0:01:37.4]} 21... Qxh6 {[%clk 0:01:26.2]} 22. Qxh6
{[%clk 0:01:37.8]} 22... gxh6 {[%clk 0:01:27.1]} 23. a4 {[%clk 0:01:38.4]} 23...
c5 {[%clk 0:01:22.4]} 24. axb5 {[%clk 0:01:34.1]} 24... axb5 {[%clk 0:01:23.3]}
25. c4 {[%clk 0:01:34.9]} 25... bxc4 {[%clk 0:01:08.8]} 26. dxc4 {[%clk
0:01:35.8]} 26... d4 {[%clk 0:01:09.4]} 27. Ba4 {[%clk 0:01:34.1]} 27... Re6
{[%clk 0:01:06.4]} 28. Bd7 {[%clk 0:01:32.1]} 28... Rea6 {[%clk 0:01:02.6]} 29.
Rxa6 {[%clk 0:01:29.7]} 29... Rxa6 {[%clk 0:01:00.5]} 30. Rb1 {[%clk 0:01:26.9]}
30... Be4 {[%clk 0:00:59]} 31. Rb5 {[%clk 0:01:17.3]} 31... Bxc2 {[%clk
0:00:45.1]} 32. Rxc5 {[%clk 0:01:16.4]} 32... Rd6 {[%clk 0:00:45.4]} 33. Bg4
{[%clk 0:01:14.4]} 33... f5 {[%clk 0:00:40.1]} 34. Bh5 {[%clk 0:01:12.9]} 34...
d3 {[%clk 0:00:34.5]} 35. Rxe5 {[%clk 0:01:10.8]} 35... d2 {[%clk 0:00:34.8]}
36. c5 {[%clk 0:01:09.5]} 36... d1=Q+ {[%clk 0:00:30.1]} 37. Bxd1 {[%clk
0:01:09.5]} 37... Rxd1+ {[%clk 0:00:30.4]} 38. Kh2 {[%clk 0:01:09.9]} 38... Rc1
{[%clk 0:00:27.1]} 39. Kg3 {[%clk 0:00:46.9]} 39... Kg7 {[%clk 0:00:21.1]} 40.
f3 {[%clk 0:00:37]} 40... Bd3 {[%clk 0:00:19.3]} 41. Rd5 {[%clk 0:00:37]} 41...
Bc4 {[%clk 0:00:16.1]} 42. Rxf5 {[%clk 0:00:36.6]} 42... Be6 {[%clk 0:00:16.4]}
43. Re5 {[%clk 0:00:36.6]} 43... Kf6 {[%clk 0:00:16.7]} 44. f4 {[%clk
0:00:35.4]} 44... Rc3+ {[%clk 0:00:16]} 45. Kh2 {[%clk 0:00:33]} 45... Rc2
{[%clk 0:00:15]} 46. Kg1 {[%clk 0:00:31.8]} 46... Bd7 {[%clk 0:00:15.1]} 47. g4
{[%clk 0:00:30.9]} 47... Bc6 {[%clk 0:00:14.7]} 48. Rf5+ {[%clk 0:00:26.6]}
48... Ke6 {[%clk 0:00:14.3]} 49. Re5+ {[%clk 0:00:26.9]} 49... Kd7 {[%clk
0:00:12.7]} 50. g5 {[%clk 0:00:21.1]} 50... hxg5 {[%clk 0:00:12.2]} 51. fxg5
{[%clk 0:00:22]} 51... Rg2+ {[%clk 0:00:11.8]} 52. Kf1 {[%clk 0:00:22.4]} 52...
Rh2 {[%clk 0:00:12]} 53. Re3 {[%clk 0:00:20.6]} 53... Rg2 {[%clk 0:00:05.6]} 54.
Rd3+ {[%clk 0:00:15.1]} 54... Kc7 {[%clk 0:00:05]} 55. h4 {[%clk 0:00:12.3]}
55... Rg4 {[%clk 0:00:04.8]} 56. Kf2 {[%clk 0:00:08.9]} 56... Rxh4 {[%clk
0:00:04.9]} 57. Rg3 {[%clk 0:00:09.5]} 57... Rf4+ {[%clk 0:00:04.8]} 58. Ke3
{[%clk 0:00:09.6]} 58... Re4+ {[%clk 0:00:05.2]} 59. Kd3 {[%clk 0:00:09.6]}
59... Re7 {[%clk 0:00:04.9]} 60. g6 {[%clk 0:00:09.6]} 60... Rg7 {[%clk
0:00:05]} 61. Kd4 {[%clk 0:00:09.7]} 61... Kd7 {[%clk 0:00:05.2]} 62. Ke5 {[%clk
0:00:10.2]} 62... Ke7 {[%clk 0:00:05.2]} 63. Kf5 {[%clk 0:00:10.8]} 63... Bd7+
{[%clk 0:00:04.9]} 64. Kg5 {[%clk 0:00:11.5]} 64... Be6 {[%clk 0:00:05]} 65. Kh6
{[%clk 0:00:11.2]} 65... Rg8 {[%clk 0:00:05]} 66. g7 {[%clk 0:00:11.2]} 66...
Kf6 {[%clk 0:00:04.9]} 67. Rg6+ {[%clk 0:00:10.8]} 67... Kf5 {[%clk 0:00:04.7]}
68. Kh7 {[%clk 0:00:06.3]} 68... Bf7 {[%clk 0:00:04.5]} 69. Rg1 {[%clk
0:00:04.8]} 69... Kf6 {[%clk 0:00:04.2]} 70. Rf1+ {[%clk 0:00:05]} 70... Ke7
{[%clk 0:00:04.4]} 71. Re1+ {[%clk 0:00:05]} 71... Kf6 {[%clk 0:00:04.8]} 72.
Rf1+ {[%clk 0:00:04.6]} 72... Ke7 {[%clk 0:00:05.2]} 73. c6 {[%clk 0:00:05.3]}
73... Rc8 {[%clk 0:00:04.3]} 74. c7 {[%clk 0:00:05.1]} 74... Be6 {[%clk
0:00:04.5]} 75. Re1 {[%clk 0:00:04.4]} 75... Rxc7 {[%clk 0:00:04.8]} 76. g8=Q
{[%clk 0:00:03.8]} 76... Kf6+ {[%clk 0:00:04.5]} 77. Kh8 {[%clk 0:00:02.8]}
77... Bxg8 {[%clk 0:00:04.7]} 78. Kxg8 {[%clk 0:00:03.6]} 78... Rc8+ {[%clk
0:00:04.8]} 79. Kh7 {[%clk 0:00:04]} 79... Rc7+ {[%clk 0:00:05.1]} 80. Kh6
{[%clk 0:00:04]} 80... Rc8 {[%clk 0:00:05.4]} 81. Rf1+ {[%clk 0:00:04.6]} 81...
Ke5 {[%clk 0:00:05.8]} 82. Kg5 {[%clk 0:00:05.5]} 82... Rg8+ {[%clk 0:00:05.1]}
83. Kh6 {[%clk 0:00:06.1]} 83... Rh8+ {[%clk 0:00:05.5]} 84. Kg7 {[%clk
0:00:06.7]} 84... Rc8 {[%clk 0:00:06.1]} 85. Re1+ {[%clk 0:00:07.2]} 85... Kd6
{[%clk 0:00:07]} 86. Rd1+ {[%clk 0:00:07.9]} 86... Kc7 {[%clk 0:00:07.6]} 87.
Kf6 {[%clk 0:00:08.6]} 87... Rd8 {[%clk 0:00:08.1]} 88. Rc1+ {[%clk 0:00:08.9]}
88... Kd7 {[%clk 0:00:08.1]} 89. Ke5 {[%clk 0:00:09.8]} 89... Re8+ {[%clk
0:00:07.9]} 90. Kd5 {[%clk 0:00:09.7]} 90... Rh8 {[%clk 0:00:08.4]} 91. Rg1
{[%clk 0:00:09.8]} 91... Rh5+ {[%clk 0:00:08.6]} 92. Ke4 {[%clk 0:00:09.9]}
92... Ke6 {[%clk 0:00:08.8]} 93. Rg6+ {[%clk 0:00:10.5]} 93... Kf7 {[%clk
0:00:09.1]} 94. Ra6 {[%clk 0:00:11.4]} 94... Rb5 {[%clk 0:00:09.1]} 95. Kf4
{[%clk 0:00:11.7]} 95... Rb4+ {[%clk 0:00:08.6]} 96. Ke5 {[%clk 0:00:11.7]}
96... Rb5+ {[%clk 0:00:08.9]} 97. Kd6 {[%clk 0:00:12.2]} 97... Rh5 {[%clk
0:00:08.8]} 98. Ra7+ {[%clk 0:00:12]} 98... Kf6 {[%clk 0:00:09.1]} 99. Ra1
{[%clk 0:00:12.9]} 99... Rh3 {[%clk 0:00:09.1]} 100. Rf1+ {[%clk 0:00:13.3]}
100... Kg5 {[%clk 0:00:09.3]} 101. Ke5 {[%clk 0:00:14]} 101... Re3+ {[%clk
0:00:09.3]} 102. Kd4 {[%clk 0:00:14.6]} 102... Re8 {[%clk 0:00:10]} 103. Rg1+
{[%clk 0:00:14.4]} 103... Kf4 {[%clk 0:00:10.4]} 104. Rf1+ {[%clk 0:00:15.3]}
104... Kg3 {[%clk 0:00:10.7]} 105. Ra1 {[%clk 0:00:15.7]} 105... Rd8+ {[%clk
0:00:10.5]} 106. Ke5 {[%clk 0:00:16.3]} 106... Kf3 {[%clk 0:00:10.7]} 107. Ra3+
{[%clk 0:00:15.8]} 107... Ke2 {[%clk 0:00:10.7]} 108. Ke4 {[%clk 0:00:15.4]}
108... Re8+ {[%clk 0:00:11.2]} 109. Kf4 {[%clk 0:00:15.5]} 109... Rf8+ {[%clk
0:00:11.4]} 110. Kg3 {[%clk 0:00:15.7]} 110... Rg8+ {[%clk 0:00:11.6]} 111. Kh4
{[%clk 0:00:14.6]} 111... Kf2 {[%clk 0:00:11.4]} 112. Ra2+ {[%clk 0:00:14.2]}
112... Kf3 {[%clk 0:00:11.8]} 113. Ra3+ {[%clk 0:00:14.8]} 113... Ke4 {[%clk
0:00:11.8]} 114. Ra4+ {[%clk 0:00:15.2]} 114... Kd3 {[%clk 0:00:12]} 115. Kh3
{[%clk 0:00:15.6]} 115... Ke3 {[%clk 0:00:11.6]} 116. Kh2 {[%clk 0:00:15.7]}
116... Kf2 {[%clk 0:00:11.5]} 117. Rf4+ {[%clk 0:00:15.3]} 117... Ke3 {[%clk
0:00:11.3]} 118. Rf7 {[%clk 0:00:16.2]} 118... Ke2 {[%clk 0:00:10.8]} 119. Kh3
{[%clk 0:00:16.7]} 119... Rg1 {[%clk 0:00:10.7]} 120. Kh4 {[%clk 0:00:16.7]}
120... Rh1+ {[%clk 0:00:10.9]} 121. Kg5 {[%clk 0:00:16.8]} 121... Rg1+ {[%clk
0:00:11.3]} 122. Kh6 {[%clk 0:00:17.4]} 122... Ke3 {[%clk 0:00:11.3]} 123. Re7+
{[%clk 0:00:17.2]} 123... Kf4 {[%clk 0:00:11.1]} 124. Ra7 {[%clk 0:00:18.1]}
124... Rh1+ {[%clk 0:00:10.8]} 125. Kg6 {[%clk 0:00:17.9]} 125... Kg4 {[%clk
0:00:10.5]} 126. Ra3 {[%clk 0:00:17]} 126... Rb1 {[%clk 0:00:09.3]} 127. Ra4+
{[%clk 0:00:17.2]} 127... Kg3 {[%clk 0:00:09.5]} 128. Ra5 {[%clk 0:00:17.8]}
1/2-1/2

[Event "*** Titled Tuesday Blitz"]
[Site "Chess.com"]
[Date "2021.02.16"]
[Round "8"]
[White "Spriteball"]
[Black "ChessSwole"]
[Result "1-0"]
[WhiteElo "2390"]
[BlackElo "2523"]
[TimeControl "180+1"]
[EndTime "11:24:30 PST"]
[Termination "Spriteball won by resignation"]

1. e4 {[%clk 0:03:00.9]} 1... e5 {[%clk 0:02:59]} 2. Nf3 {[%clk 0:03:01]} 2...
Nc6 {[%clk 0:02:58.5]} 3. Bb5 {[%clk 0:03:01.5]} 3... a6 {[%clk 0:02:57.6]} 4.
Ba4 {[%clk 0:03:02]} 4... Nf6 {[%clk 0:02:56.9]} 5. O-O {[%clk 0:03:01.7]} 5...
Nxe4 {[%clk 0:02:57]} 6. Re1 {[%clk 0:02:53.6]} 6... Nc5 {[%clk 0:02:52.2]} 7.
Nc3 {[%clk 0:02:50.5]} 7... Nxa4 {[%clk 0:02:50.6]} 8. Nxe5 {[%clk 0:02:50.3]}
8... Nxe5 {[%clk 0:02:47.5]} 9. Rxe5+ {[%clk 0:02:50.3]} 9... Be7 {[%clk
0:02:48.2]} 10. Nd5 {[%clk 0:02:50.5]} 10... O-O {[%clk 0:02:36.2]} 11. Nxe7+
{[%clk 0:02:50.3]} 11... Kh8 {[%clk 0:02:36.6]} 12. Qh5 {[%clk 0:02:49.7]} 12...
g6 {[%clk 0:02:17.6]} 13. Qh6 {[%clk 0:02:41.7]} 13... d6 {[%clk 0:02:07]} 14.
Rh5 {[%clk 0:02:36.2]} 1-0

[Event "*** Titled Tuesday Blitz"]
[Site "Chess.com"]
[Date "2021.02.16"]
[Round "8"]
[White "kamilianin235"]
[Black "MagzyPotato"]
[Result "1-0"]
[WhiteElo "2201"]
[BlackElo "2399"]
[TimeControl "180+1"]
[EndTime "11:24:50 PST"]
[Termination "kamilianin235 won by resignation"]

1. e4 {[%clk 0:03:00.9]} 1... c5 {[%clk 0:03:00.3]} 2. Nf3 {[%clk 0:03:00.6]}
2... Nc6 {[%clk 0:03:00.6]} 3. Bb5 {[%clk 0:02:59]} 3... e6 {[%clk 0:03:00.1]}
4. Bxc6 {[%clk 0:02:58.2]} 4... bxc6 {[%clk 0:02:57.5]} 5. O-O {[%clk
0:02:51.9]} 5... f6 {[%clk 0:02:53.5]} 6. c3 {[%clk 0:02:45.3]} 6... d5 {[%clk
0:02:38.6]} 7. Re1 {[%clk 0:02:42.3]} 7... Nh6 {[%clk 0:02:28.2]} 8. d4 {[%clk
0:02:36.9]} 8... cxd4 {[%clk 0:02:24.6]} 9. Bxh6 {[%clk 0:02:34.9]} 9... gxh6
{[%clk 0:02:24.9]} 10. Nxd4 {[%clk 0:02:31.2]} 10... c5 {[%clk 0:01:55]} 11.
Qh5+ {[%clk 0:02:25.1]} 11... Ke7 {[%clk 0:01:49.4]} 12. Nc6+ {[%clk 0:02:21.6]}
1-0